bitfinex-derivatives/quotes_SOLF0:USTF0_20250117
["timestamp","ask_amount","ask_price","bid_price","bid_amount"]
[1737087705248,7.5442933,211.78,211.67,4.6979]
[1737087705451,7.5442933,211.78,211.71,7.5442933]
[1737087706753,4.7231,211.76,211.71,7.5442933]
[1737087706946,7.5442933,211.76,211.67,12.2421933]
[1737087707655,7.5442933,211.76,211.67,3.1244]
[1737087707851,4.7237,211.73,211.67,7.8494]
[1737087708956,12.2677933,211.74,211.68,12.2689933]
[1737087709451,7.5442933,211.74,211.68,12.2689933]
[1737087709654,4.7237,211.73,211.68,12.2689933]
[1737087711257,7.5442933,211.74,211.67,3.1244]
[1737087711451,144.49984147,211.88,211.62,1.4984]
[1737087711452,7.5442933,211.7,211.62,1.4984]
[1737087711651,7.5442933,211.68,211.62,9.0426933]
[1737087712256,7.5442933,211.7,211.64,4.7257]
[1737087713458,4.7246,211.69,211.64,4.7257]
[1737087713960,12.2685933,211.71,211.64,4.7257]
[1737087714161,7.5442933,211.71,211.66,4.725]
[1737087714460,4.7239,211.72,211.66,7.5442933]
[1737087715052,4.7239,211.72,211.67,4.725]
[1737087716666,12.2684933,211.71,211.67,4.725]
[1737087720267,12.2684933,211.71,211.65,4.7253]
[1737087720566,12.2684933,211.71,211.64,7.5442933]
[1737087722071,12.2684933,211.71,211.66,4.7252]
[1737087727875,7.5442933,211.73,211.65,7.5442933]
[1737087728073,154.48124142,211.78,211.69,7.5442933]
[1737087728271,7.5442933,211.76,211.69,7.5442933]
[1737087728774,7.5442933,211.78,211.71,7.5442933]
[1737087729170,4.7228,211.77,211.72,4.7239]
[1737087731578,4.7228,211.77,211.71,7.5442933]
[1737087731775,7.5442933,211.78,211.7,4.7241]
[1737087731979,4.723,211.76,211.69,7.5442933]
[1737087733077,4.723,211.76,211.71,4.7241]
[1737087733279,4.7232,211.75,211.69,7.5442933]
[1737087735077,4.7232,211.75,211.7,4.7243]
[1737087735982,7.5442933,211.76,211.71,4.7241]
[1737087736173,18.06540287,211.83,211.72,7.5442933]
[1737087736483,7.5442933,211.8,211.72,7.5442933]
[1737087736682,7.5442933,211.8,211.75,4.723]
[1737087737579,4.7217,211.82,211.76,7.5442933]
[1737087738674,12.2656933,211.84,211.78,4.7226]
[1737087739080,7.5442933,211.84,211.78,4.7226]
[1737087739286,88.48,211.91,211.78,4.7226]
[1737087739586,7.5442933,211.84,211.78,4.7226]
[1737087740185,4.7215,211.83,211.78,4.7226]
[1737087740489,7.5442933,211.88,211.8,7.5442933]
[1737087740988,7.5442933,211.88,211.8,4.722]
[1737087741385,7.5442933,211.88,211.79,7.5442933]
[1737087741386,7.5442933,211.86,211.79,7.5442933]
[1737087741689,7.5442933,211.86,211.77,4.6136]
[1737087741690,7.5442933,211.84,211.77,4.6136]
[1737087742585,7.5442933,211.84,211.78,7.5442933]
[1737087743194,4.7218,211.82,211.77,9.3363]
[1737087745087,4.7214,211.84,211.8,7.5442933]
[1737087745386,7.5442933,211.88,211.8,7.5442933]
[1737087745888,4.721,211.86,211.81,4.7219]
[1737087746688,7.5442933,211.91,211.84,7.5442933]
[1737087746889,4.7199,211.9,211.85,4.721]
[1737087747091,7.5442933,211.91,211.84,7.5442933]
[1737087747291,68.47448795,211.93,211.86,7.5442933]
[1737087747588,4.7197,211.91,211.86,12.2650933]
[1737087750791,4.7194,211.92,211.87,4.7205]
[1737087754896,4.7194,211.92,211.86,7.5442933]
[1737087755099,4.7194,211.92,211.86,12.2650933]
[1737087756295,68.47448795,211.93,211.86,7.5442933]
[1737087756596,73.19368795,211.93,211.88,4.7202]
[1737087756792,323.73258019,212.13,211.9,7.5442933]
[1737087756990,4.7186,211.96,211.91,4.7196]
[1737087757893,4.7183,211.97,211.92,4.7194]
[1737087758997,7.5442933,211.96,211.91,4.7196]
[1737087759195,7.5442933,211.97,211.91,12.2638933]
[1737087759896,4.7184,211.97,211.92,4.7194]
[1737087760794,4.7184,211.97,211.93,12.2634933]
[1737087761602,88.38,212.17,211.93,7.5442933]
[1737087761801,4.8,212.1,211.97,7.5442933]
[1737087762097,7.5442933,212.02,211.95,7.5442933]
[1737087762989,4.7179,212.0,211.95,7.5442933]
[1737087763806,7.5442933,212.0,211.88,1.4554]
[1737087764006,4.7185,211.97,211.92,4.7194]
[1737087767301,4.7185,211.97,211.91,7.5442933]
[1737087767302,4.8,212.1,211.93,7.5442933]
[1737087767600,4.7181,211.98,211.93,12.2634933]
[1737087768202,4.7181,211.98,211.95,7.5442933]
[1737087768503,7.5442933,212.02,211.95,7.5442933]
[1737087768704,4.7179,212.0,211.95,7.5442933]
[1737087769202,4.7179,212.0,211.95,12.2628933]
[1737087769405,4.7179,212.0,211.88,1.4554]
[1737087769406,4.7174,212.01,211.97,7.5442933]
[1737087773310,4.7179,211.99,211.95,7.5442933]
[1737087774303,4.7179,211.99,211.95,12.2629933]
[1737087774608,7.5442933,212.01,211.95,12.2629933]
[1737087774807,7.5442933,212.01,211.95,7.5442933]
[1737087775105,7.5442933,212.02,211.95,7.5442933]
[1737087776308,7.5442933,212.03,211.95,7.5442933]
[1737087776507,4.7178,212.0,211.95,12.2628933]
[1737087782107,4.8,212.09,211.97,7.5442933]
[1737087782307,4.717,212.03,211.99,7.5442933]
[1737087783512,4.7173,212.02,211.99,7.5442933]
[1737087785213,7.5442933,212.06,211.99,7.5442933]
[1737087785414,4.717,212.03,211.99,7.5442933]
[1737087785610,7.5442933,212.08,211.99,7.5442933]
[1737087786315,4.7167,212.05,212.0,4.7176]
[1737087786711,40.07652767,212.1,211.99,7.5442933]
[1737087786910,4.7168,212.04,211.99,7.5442933]
[1737087787513,4.7168,212.04,212.0,4.7177]
[1737087787817,7.5442933,212.05,211.96,4.4831]
[1737087788018,7.5442933,212.05,211.97,7.5442933]
[1737087788516,7.5442933,212.03,211.97,7.5442933]
[1737087789108,40.07652767,212.1,211.99,4.7179]
[1737087789313,7.5442933,212.06,211.99,4.7179]
[1737087789716,7.5442933,212.06,211.99,12.2621933]
[1737087790208,4.7168,212.04,211.99,12.2621933]
[1737087792017,4.7168,212.04,211.99,4.7179]
[1737087792721,40.07652767,212.1,212.02,7.5442933]
[1737087792914,47.62082097,212.1,212.02,7.5442933]
[1737087794122,4.7161,212.07,212.02,12.2613933]
[1737087794720,4.7161,212.07,212.03,4.7169]
[1737087794919,7.5442933,212.08,211.96,4.4831]
[1737087795223,4.7164,212.06,212.01,7.5442933]
[1737087795423,7.5442933,212.08,212.01,12.2614933]
[1737087795628,4.7163,212.06,212.01,12.2614933]
[1737087799931,4.7168,212.04,211.99,4.7179]
[1737087800235,7.5442933,212.05,211.98,7.5442933]
[1737087800829,12.45393097,212.09,211.98,7.5442933]
[1737087801033,7.5442933,212.06,211.98,7.5442933]
[1737087801534,40.07652767,212.1,211.98,7.5442933]
[1737087801833,7.5442933,212.07,212.0,7.5442933]
[1737087802126,7.5442933,212.09,212.0,7.5442933]
[1737087802332,40.07652767,212.1,212.04,7.5442933]
[1737087802931,44.79202767,212.1,212.05,4.7165]
[1737087804135,44.79202767,212.1,212.06,7.5442933]
[1737087804434,4.7148,212.13,212.08,7.5442933]
[1737087804635,4.7148,212.13,212.1,7.5442933]
[1737087805530,4.7144,212.15,212.12,7.5442933]
[1737087806038,10.35798998,212.15,212.12,7.5442933]
[1737087806733,4.7148,212.13,212.1,7.5442933]
[1737087809026,7.5442933,212.14,212.06,1.5079]
[1737087809225,4.7155,212.1,212.06,9.0521933]
[1737087810036,4.7152,212.11,212.06,9.0521933]
[1737087812331,5.63440028,212.19,212.06,1.5079]
[1737087812531,5.63440028,212.19,212.12,7.5442933]
[1737087812939,7.5442933,212.18,212.12,7.5442933]
[1737087813336,4.7143,212.15,212.1,12.2594933]
[1737087816434,7.5442933,212.19,212.12,7.5442933]
[1737087816637,4.714,212.17,212.12,7.5442933]
[1737087817229,7.5442933,212.19,212.09,4.7155]
[1737087817430,7.5442933,212.19,212.1,7.5442933]
[1737087817831,4.714,212.17,212.1,7.5442933]
[1737087818038,7.5442933,212.19,212.1,7.5442933]
[1737087818437,4.7145,212.15,212.1,12.2596933]
[1737087818840,7.5442933,212.15,212.09,7.5442933]
[1737087819445,4.7145,212.14,212.09,12.2598933]
[1737087820134,4.7145,212.14,212.09,7.5442933]
[1737087820740,4.7148,212.13,212.09,7.5442933]
[1737087820934,7.5442933,212.13,212.06,13.7684933]
[1737087822136,4.7153,212.11,212.06,13.7684933]
[1737087822939,4.7159,212.08,212.04,2.9702]
[1737087823136,7.5442933,212.09,212.04,1.5089]
[1737087825245,4.7159,212.08,212.04,1.5089]
[1737087826148,7.5442933,212.13,212.05,12.2607933]
[1737087827143,12.42161295,212.2,212.05,12.2607933]
[1737087827144,4.7152,212.12,212.05,7.5442933]
[1737087827445,4.7152,212.12,212.07,7.5442933]
[1737087828241,4.7152,212.12,212.09,7.5442933]
[1737087828446,2.31035453,212.25,212.09,7.5442933]
[1737087828447,4.7143,212.16,212.09,7.5442933]
[1737087828638,7.5442933,212.17,212.11,7.5442933]
[1737087829547,4.8,212.22,212.11,12.2594933]
[1737087829748,7.5442933,212.17,212.11,12.2594933]
[1737087830044,4.7146,212.14,212.09,12.2597933]
[1737087830250,7.5442933,212.17,212.09,12.2597933]
[1737087830449,7.5442933,212.17,212.09,7.5442933]
[1737087830748,4.7148,212.13,212.09,7.5442933]
[1737087832447,4.715,212.12,212.09,7.5442933]
[1737087832648,7.5442933,212.14,212.07,7.5442933]
[1737087833450,7.5442933,212.14,212.07,12.2602933]
[1737087833750,4.8,212.23,212.06,9.1255933]
[1737087834048,4.7152,212.11,212.06,9.1255933]
[1737087834352,7.5442933,212.13,212.06,7.5442933]
[1737087836253,4.7155,212.1,212.06,12.2605933]
[1737087837546,4.7153,212.11,212.06,12.2605933]
[1737087837747,7.5442933,212.13,212.06,7.5442933]
[1737087839755,4.7152,212.11,212.06,7.5442933]
[1737087843054,4.7155,212.1,212.06,7.5442933]
[1737087843555,7.5442933,212.12,212.06,7.5442933]
[1737087845558,4.7155,212.1,212.06,7.5442933]
[1737087848658,4.7154,212.11,212.06,7.5442933]
[1737087848852,7.5442933,212.1,212.04,1.5089]
[1737087850159,4.7159,212.09,212.04,6.2257]
[1737087852560,7.5442933,212.1,212.04,1.5089]
[1737087852957,7.5442933,212.1,212.03,7.5442933]
[1737087853357,4.7166,212.05,212.01,13.8445933]
[1737087855160,7.5442933,212.07,211.94,6.56872203]
[1737087855358,4.7173,212.02,211.97,7.5442933]
[1737087855663,7.5442933,212.1,212.01,12.2614933]
[1737087855856,7.5442933,212.1,212.03,7.5442933]
[1737087856058,4.7163,212.07,212.03,7.5442933]
[1737087857661,4.7164,212.06,212.03,7.5442933]
[1737087868872,4.7157,212.09,212.05,7.5442933]
[1737087869069,7.5442933,212.15,212.07,7.5442933]
[1737087869569,4.7153,212.11,212.07,7.5442933]
[1737087870375,4.7153,212.11,212.09,7.5442933]
[1737087871275,166.95894067,212.19,212.09,7.5442933]
[1737087871476,12.47769925,212.18,212.11,7.5442933]
[1737087871683,130.29984147,212.24,212.13,7.5442933]
[1737087871882,7.5442933,212.21,212.15,7.5442933]
[1737087872082,4.7134,212.2,212.15,12.2585933]
[1737087872687,5.64859834,212.22,212.19,7.5442933]
[1737087872888,5.64859834,212.22,212.21,7.5442933]
[1737087873486,4.7123,212.24,212.21,7.5442933]
[1737087873684,4.7123,212.24,212.19,7.5442933]
[1737087874286,4.7126,212.23,212.17,7.5442933]
[1737087877089,7.5442933,212.24,212.17,7.5442933]
[1737087877286,7.5442933,212.24,212.15,12.2585933]
[1737087877489,7.5442933,212.22,212.15,12.2585933]
[1737087878194,4.7131,212.21,212.15,12.2585933]
[1737087880099,7.5442933,212.22,212.15,12.2585933]
[1737087880897,7.15391423,212.27,212.17,7.5442933]
[1737087880898,12.2566933,212.24,212.17,7.5442933]
[1737087881396,12.2566933,212.24,212.08,9.2772]
[1737087881397,17.88232332,212.26,212.19,7.5442933]
[1737087881597,10.33803002,212.26,212.21,7.5442933]
[1737087881798,5.62603002,212.26,212.21,7.5442933]
[1737087882198,12.77775703,212.27,212.21,7.5442933]
[1737087882399,5.62603002,212.27,212.21,7.5442933]
[1737087882598,5.62603002,212.27,212.23,7.5442933]
[1737087883004,7.5442933,212.31,212.23,7.5442933]
[1737087883700,7.5442933,212.31,212.25,4.7119]
[1737087884198,12.2550933,212.31,212.25,4.7119]
[1737087884794,12.2550933,212.31,212.24,4.7123]
[1737087886303,7.5442933,212.31,212.25,7.5442933]
[1737087886600,4.7107,212.32,212.26,4.7119]
[1737087887007,7.5442933,212.31,212.17,4.52]
[1737087887302,7.5442933,212.29,212.24,7.5442933]
[1737087887502,7.5442933,212.29,212.22,7.5442933]
[1737087888206,7.5442933,212.27,212.2,7.5442933]
[1737087889108,4.7121,212.25,212.2,12.2574933]
[1737087890403,7.5442933,212.27,212.2,12.2574933]
[1737087890608,4.7119,212.26,212.2,12.2574933]
[1737087892614,4.7122,212.25,212.2,12.2574933]
[1737087892912,4.7122,212.25,212.2,7.5442933]
[1737087893414,12.2564933,212.25,212.2,7.5442933]
[1737087895715,4.7124,212.24,212.2,7.5442933]
[1737087896611,4.7124,212.24,212.19,4.7135]
[1737087896810,4.7126,212.23,212.18,7.5442933]
[1737087897311,7.5442933,212.23,212.17,9.2338]
[1737087897512,4.7131,212.21,212.17,4.52]
[1737087898708,7.5442933,212.19,212.02,88.32]
[1737087898908,7.5442933,212.19,212.11,7.5442933]
[1737087899411,4.7143,212.16,212.11,7.5442933]
[1737087899918,4.7143,212.16,212.11,12.2594933]
[1737087922039,4.7143,212.16,212.05,4.8]
[1737087922343,7.5442933,212.15,212.09,4.7155]
[1737087922737,4.7148,212.14,212.04,1.5512]
[1737087922937,7.5442933,212.11,212.04,9.0954933]
[1737087923145,7.5442933,212.09,212.04,1.5512]
[1737087923444,4.7159,212.08,212.04,1.5512]
[1737087925146,12.2599933,212.09,212.04,1.5512]
[1737087925942,12.2599933,212.09,212.03,15.3107933]
[1737087925943,7.5442933,212.09,212.03,3.0497]
[1737087926143,7.5442933,212.07,212.03,3.0497]
[1737087926846,7.5442933,212.07,212.03,1.4947]
[1737087927145,4.7164,212.06,212.01,12.2615933]
[1737087927346,7.5442933,212.05,211.99,4.7177]
[1737087927942,7.5442933,212.05,211.97,15.2689933]
[1737087928139,7.5442933,212.05,211.97,10.5506933]
[1737087928541,12.2612933,212.03,211.97,15.2690933]
[1737087930248,4.7173,212.02,211.97,3.0064]
[1737087937650,4.7173,212.02,211.97,7.7247]
[1737087940356,154.48124142,212.1,211.98,4.7181]
[1737087940357,4.717,212.04,211.98,4.7181]
[1737087940653,7.5442933,212.02,211.98,4.7181]
[1737087943853,4.7161,212.07,212.01,4.7173]
[1737087944053,12.2603933,212.07,212.0,7.5442933]
[1737087944955,12.2603933,212.07,212.02,4.7171]
[1737087945552,4.7161,212.07,212.02,4.7171]
[1737087946355,4.7161,212.07,212.03,4.7169]
[1737087947760,154.48124142,212.1,212.04,4.7172]
[1737087947951,7.5442933,212.09,212.04,4.7172]
[1737087948154,7.5442933,212.11,212.07,4.7165]
[1737087949159,12.2599933,212.11,212.07,4.7165]
[1737087950662,12.2599933,212.11,212.06,4.7168]
[1737087952262,4.7154,212.13,212.08,4.7162]
[1737087952565,7.5442933,212.12,212.08,4.7162]
[1737087952862,12.2601933,212.1,212.05,4.7168]
[1737087953463,12.2601933,212.1,212.04,7.5442933]
[1737087953665,12.2601933,212.1,212.06,4.7167]
[1737087954164,7.5442933,212.08,212.03,4.7174]
[1737087956066,4.7166,212.07,212.03,4.7174]
[1737087956767,12.2610933,212.06,212.01,6.2926]
[1737087956970,7.5442933,212.06,211.98,7.5442933]
[1737087957366,7.5442933,212.04,212.01,4.7179]
[1737087959265,154.48124142,212.14,212.02,4.7177]
[1737087959468,7.5442933,212.06,212.02,4.7177]
[1737087959668,12.2610933,212.06,211.98,7.5442933]
[1737087959870,12.2610933,212.06,212.0,4.718]
[1737087960171,4.7168,212.06,212.0,7.5442933]
[1737087960973,12.2612933,212.05,211.99,4.7181]
[1737087961271,7.5442933,212.05,211.99,4.7181]
[1737087961873,7.5442933,212.03,211.99,4.7181]
[1737087963173,12.2617933,212.03,211.99,4.7181]
[1737087963873,7.5442933,212.01,211.97,7.725]
[1737087965165,12.2621933,212.01,211.97,7.725]
[1737087966275,7.5442933,212.01,211.97,7.725]
[1737087968377,12.2623933,212.01,211.95,6.1944]
[1737087968578,12.2623933,212.01,211.95,1.4753]
[1737087969471,7.5442933,211.97,211.91,26.27488812]
[1737087969673,7.5442933,211.95,211.91,26.27488812]
[1737087969873,7.5442933,211.95,211.91,6.56872203]
[1737087970574,4.7192,211.96,211.91,6.56872203]
[1737087970775,7.5442933,211.98,211.91,7.5442933]
[1737087970979,7.5442933,212.0,211.93,7.5442933]
[1737087971380,12.2621933,212.02,211.96,4.7188]
[1737087972683,12.2621933,212.02,211.97,4.7188]
[1737087974983,7.5442933,212.0,211.97,4.7188]
[1737087977176,7.5442933,212.0,211.93,7.5442933]
[1737087977379,7.5442933,212.0,211.95,4.7191]
[1737087977888,12.2628933,211.98,211.92,6.2939]
[1737087978986,12.2628933,211.98,211.93,4.7197]
[1737087979376,4.7188,211.97,211.92,1.5742]
[1737087981086,4.7188,211.97,211.92,6.2941]
[1737087983183,4.7188,211.97,211.92,4.7199]
[1737087987193,7.5442933,211.96,211.89,10.5644933]
[1737087987392,12.2632933,211.96,211.91,4.7201]
[1737087989789,7.5442933,211.94,211.9,4.7203]
[1737087990986,7.5442933,211.94,211.87,7.5442933]
[1737087990987,4.7201,211.91,211.86,1.4771]
[1737087991188,7.5442933,211.92,211.86,1.4771]
[1737087991486,154.48124142,212.03,211.9,7.5442933]
[1737087991686,7.5442933,211.96,211.9,7.5442933]
[1737087993197,12.2632933,211.96,211.91,4.7201]
[1737087994295,4.7193,211.95,211.9,4.7203]
[1737087994998,4.7195,211.94,211.89,4.7206]
[1737087995400,7.5442933,211.94,211.89,4.7206]
[1737087996095,4.7197,211.93,211.89,4.7206]
[1737087996793,4.7197,211.93,211.86,1.4771]
[1737087997099,4.7197,211.93,211.87,4.7208]
[1737087997300,7.5442933,211.92,211.87,4.7208]
[1737087997598,7.5442933,211.92,211.86,1.4771]
[1737087998092,4.7202,211.91,211.86,4.7212]
[1737087999199,7.5442933,211.92,211.84,7.5442933]
[1737087999404,7.5442933,211.92,211.85,4.7215]
[1737087999405,4.7204,211.9,211.85,4.7215]
[1737088006901,12.2646933,211.9,211.85,4.7215]
[1737088009605,4.7206,211.89,211.85,4.7215]
[1737088009801,4.7206,211.89,211.83,12.2659933]
[1737088009999,7.5442933,211.96,211.87,7.5442933]
[1737088010195,7.5442933,211.98,211.79,4.5681]
[1737088010400,7.5442933,211.98,211.91,7.5442933]
[1737088011107,4.7188,211.97,211.92,4.7199]
[1737088015802,46.42073835,212.0,211.93,7.5442933]
[1737088016197,46.42073835,212.0,211.95,7.5442933]
[1737088017006,4.7178,212.02,211.95,7.5442933]
[1737088017704,4.7178,212.02,211.97,4.7188]
[1737088019213,7.5442933,212.01,211.97,4.7188]
[1737088020311,7.5442933,211.99,211.95,4.719]
[1737088021404,12.2628933,211.99,211.93,4.7195]
[1737088021604,12.2628933,211.99,211.92,7.5442933]
[1737088023220,12.2628933,211.99,211.94,4.7193]
[1737088026720,7.5442933,211.99,211.94,4.7193]
[1737088026920,7.5442933,211.99,211.95,4.7191]
[1737088027620,12.2618933,212.03,211.98,4.7186]
[1737088027816,12.2618933,212.03,211.96,7.5442933]
[1737088028220,7.5442933,212.03,211.96,7.5442933]
[1737088028515,7.5442933,212.01,211.97,4.7188]
[1737088028721,7.5442933,212.01,211.94,7.5442933]
[1737088028921,12.2622933,212.01,211.95,4.719]
[1737088030025,12.2622933,212.01,211.96,4.7189]
[1737088030427,7.5442933,211.99,211.92,7.5442933]
[1737088032130,12.2626933,211.99,211.94,4.7194]
[1737088037432,12.2626933,211.99,211.94,4.7194]
[1737088039030,4.7189,211.96,211.91,4.7198]
[1737088039231,7.5442933,211.95,211.91,4.7198]
[1737088046132,7.5442933,211.95,211.89,7.5442933]
[1737088046336,7.5442933,211.95,211.92,4.7198]
[1737088046539,7.5442933,211.97,211.92,4.7198]
[1737088047736,7.5442933,212.0,211.93,7.5442933]
[1737088048234,7.5442933,212.0,211.95,4.7189]
[1737088048937,12.2623933,212.0,211.95,4.7189]
[1737088049437,4.7181,212.0,211.95,4.7189]
[1737088049644,12.2619933,212.02,211.95,7.5442933]
[1737088049838,7.5442933,212.0,211.93,7.5442933]
[1737088050038,7.5442933,211.98,211.91,7.5442933]
[1737088050240,12.2627933,211.98,211.91,7.5442933]
[1737088050639,12.2627933,211.98,211.92,4.7196]
[1737088052747,12.2627933,211.98,211.93,4.7196]
[1737088053950,7.5442933,212.02,211.95,7.5442933]
[1737088054147,7.5442933,212.04,211.97,7.5442933]
[1737088054548,12.2611933,212.06,212.0,4.7179]
[1737088054851,7.5442933,212.04,211.97,7.5442933]
[1737088055248,7.5442933,212.02,211.98,4.7183]
[1737088055445,7.5442933,212.02,211.95,4.8]
[1737088056447,7.5442933,212.02,211.96,4.7189]
[1737088058751,7.5442933,212.0,211.94,4.7192]
[1737088059651,7.5442933,212.0,211.95,4.7191]
[1737088062152,7.5442933,212.0,211.95,4.719]
[1737088062456,7.5442933,212.0,211.94,7.5442933]
[1737088063056,7.5442933,212.02,211.97,4.7187]
[1737088063454,4.7174,212.03,211.97,4.7187]
[1737088063654,7.5442933,212.02,211.98,4.7185]
[1737088064359,46.40110238,212.09,211.98,7.5442933]
[1737088064560,7.5442933,212.08,212.0,7.5442933]
[1737088065063,12.2605933,212.08,212.02,4.7176]
[1737088065357,7.5442933,212.06,211.99,7.5442933]
[1737088065857,12.2610933,212.06,212.01,4.7178]
[1737088070060,7.5442933,212.06,212.01,4.7178]
[1737088074766,7.5442933,212.06,212.02,4.7176]
[1737088076963,4.7163,212.08,212.02,4.7176]
[1737088077269,7.5442933,212.07,212.02,4.7176]
[1737088078269,7.5442933,212.05,212.02,4.7176]
[1737088078965,7.5442933,212.05,211.91,48.73459183]
[1737088079172,7.5442933,212.03,211.99,4.7181]
[1737088080467,46.40110238,212.09,211.98,7.5442933]
[1737088080770,58.66139568,212.09,212.04,4.7171]
[1737088081768,4.7158,212.1,212.05,4.7168]
[1737088081965,12.2600933,212.1,212.05,4.7168]
[1737088082570,7.5442933,212.1,212.02,7.5442933]
[1737088082773,7.5442933,212.06,211.98,3.1043]
[1737088082963,7.5442933,212.06,211.98,10.6485933]
[1737088083466,7.5442933,212.04,211.99,4.7181]
[1737088084061,12.2614933,212.04,211.99,4.7181]
[1737088084765,4.7175,212.03,211.98,3.1043]
[1737088084971,7.5442933,212.02,211.94,7.5442933]
[1737088086072,4.7175,212.03,211.96,12.2629933]
[1737088086572,12.2615933,212.04,211.98,4.7184]
[1737088086870,7.5442933,212.04,211.96,7.5442933]
[1737088087874,7.5442933,212.04,211.99,4.7182]
[1737088092374,12.2613933,212.04,211.99,4.7182]
[1737088102882,4.7171,212.04,211.99,4.7182]
[1737088103085,4.7169,212.05,212.0,12.2621933]
[1737088103691,4.7169,212.05,212.0,4.7179]
[1737088103989,4.7169,212.05,212.0,12.2621933]
[1737088108892,7.5442933,212.07,212.0,7.5442933]
[1737088109095,7.5442933,212.09,212.03,4.7173]
[1737088110197,4.7164,212.08,212.04,4.7171]
[1737088110385,4.7164,212.08,212.04,12.2613933]
[1737088110591,4.7164,212.08,211.94,6.56872203]
[1737088110592,8.9872933,212.13,212.06,7.5442933]
[1737088111687,4.7158,212.11,212.06,4.7167]
[1737088111892,7.5442933,212.07,212.01,4.78]
[1737088112294,12.2608933,212.07,212.02,4.7175]
[1737088112994,4.7166,212.07,212.02,12.2617933]
[1737088113796,4.7166,212.07,212.01,17.0420933]
[1737088114692,7.5442933,212.09,212.01,4.78]
[1737088114896,4.7169,212.05,212.01,12.3242933]
[1737088116100,4.7172,212.04,212.01,4.78]
[1737088116801,4.7169,212.05,212.01,4.78]
[1737088117300,7.5442933,212.07,212.01,12.3242933]
[1737088117501,1.443,212.13,212.03,7.5442933]
[1737088117702,7.5442933,212.1,212.03,7.5442933]
[1737088118302,4.7161,212.09,212.04,4.717]
[1737088118603,7.5442933,212.1,212.03,7.5442933]
[1737088118903,4.7163,212.08,212.03,4.7173]
[1737088120103,4.7165,212.07,212.02,4.7175]
[1737088120307,7.5442933,212.08,212.01,4.78]
[1737088121104,4.7168,212.06,212.01,9.4978]
[1737088123306,12.2610933,212.06,212.01,9.4978]
[1737088124909,7.5442933,212.06,212.01,9.4978]
[1737088126806,4.7165,212.07,212.01,9.4978]
[1737088127305,7.5442933,212.08,212.02,4.7175]
[1737088127501,12.2604933,212.08,212.02,4.7175]
[1737088130903,4.7162,212.08,212.02,4.7175]
[1737088131102,7.5442933,212.09,212.01,4.78]
[1737088131302,12.2604933,212.09,212.03,4.7173]
[1737088133140,7.5442933,212.09,212.04,4.717]
[1737088134530,7.5442933,212.09,212.05,4.7168]
[1737088135035,1.443,212.13,212.02,7.5442933]
[1737088135335,5.65556896,212.15,212.04,7.5442933]
[1737088135533,7.5442933,212.12,212.04,7.5442933]
[1737088136731,7.5442933,212.12,212.08,4.716]
[1737088136922,7.5442933,212.12,212.04,7.5442933]
[1737088139221,7.5442933,212.12,212.08,4.7161]
[1737088143925,12.2596933,212.12,212.08,4.7161]
[1737088145521,1.4946,212.19,212.06,7.5442933]
[1737088145724,7.5442933,212.14,212.08,7.5442933]
[1737088146220,7.5442933,212.14,212.11,4.7155]
[1737088147525,12.2588933,212.16,212.11,4.7155]
[1737088147827,7.5442933,212.16,212.12,4.7153]
[1737088148225,7.5442933,212.16,212.1,7.5442933]
[1737088148925,7.5442933,212.16,212.13,4.7151]
[1737088149121,4.7137,212.2,212.1,7.5442933]
[1737088149319,7.5442933,212.18,212.1,7.5442933]
[1737088149518,7.5442933,212.18,212.14,4.7147]
[1737088153128,4.7138,212.19,212.14,4.7147]
[1737088153525,4.7138,212.19,212.14,12.2589933]
[1737088157230,7.5442933,212.22,212.14,7.5442933]
[1737088159145,12.2576933,212.22,212.17,4.7142]
[1737088160040,4.7134,212.22,212.14,7.5442933]
[1737088160343,12.2576933,212.22,212.18,4.714]
[1737088160544,4.7134,212.21,212.14,7.5442933]
[1737088161381,4.714,212.19,212.12,7.5442933]
[1737088163146,4.714,212.19,212.14,4.7147]
[1737088163644,7.5442933,212.18,212.07,4.5308]
[1737088163844,7.5442933,212.16,212.09,7.5442933]
[1737088164948,4.7149,212.14,212.09,7.5442933]
[1737088165146,12.2591933,212.14,212.08,4.7162]
[1737088165946,12.2591933,212.14,212.09,4.716]
[1737088170350,4.7149,212.14,212.09,4.716]
[1737088174152,4.7149,212.14,212.1,4.7158]
[1737088174748,4.7134,212.21,212.15,4.7145]
[1737088174946,4.7134,212.21,212.15,12.2587933]